[Event "White Rook U14 Final 2019"]
[Site "Sochi"]
[Date "2019.06.06"]
[Round "5.5"]
[White "Kurus, Artem"]
[Black "Erastov, Semen"]
[Result "1-0"]
[ECO "D31"]
[WhiteElo "1769"]
[BlackElo "2028"]
[Annotator "NA RC"]
[PlyCount "100"]
[EventDate "2019.06.02"]
[EventCountry "RUS"]
[SourceTitle "playchess.com"]
[Source "ChessBase"]
[SourceQuality "1"]
[TimeControl "5400+30"]

1. d4 {[%emt 0:00:00]} d5 {[%emt 0:00:00]} 2. c4 {[%emt 0:00:00]} e6 {[%emt 0:00:00]} 3. Nc3 {[%emt 0:00:00]} c6 {[%emt 0:00:00]} 4. cxd5 {[%emt 0:00:00]} exd5 {[%emt 0:00:00]} 5. Qc2 {[%emt 0:00:00]} Bd6 {[%emt 0:00:00]} 6. Nf3 {[%emt 0:00:11]} Ne7 {[%emt 0:00:00]} 7. Bg5 {[%emt 0:00:00]} f6 {[%emt 0:00:00]} 8. Bd2 {[%emt 0:00:18] D31: Queen's Gambit Declined: Semi-Slav without ...Nf6 (+ Marshall Gambit and Noteboom) and Exchange Variation lines without ...Nf6} O-O {[%emt 0:05:41]} (8... Na6 9. e4 Nb4 10. Qb3 a5 11. a3 a4 12. Qd1 dxe4 13. Nxe4 Nbd5 14. Bc4 Be6 15. O-O O-O {½-½ (34) Ivanchuk,V (2728)-Kramnik,V (2803) Tbilisi 2017}) 9. e4 {[%emt 0:06:22]} Bg4 $146 {[%emt 0:12:00]} ({Predecessor:} 9... dxe4 10. Nxe4 Nd5 11. Nxd6 Qxd6 12. Bd3 Re8+ 13. Kf1 f5 14. Bxf5 Bxf5 15. Qxf5 Nd7 {0-1 (36) Kekki,P (2371)-Volkov,S (2597) Rethymno 2010}) 10. Bd3 {[%emt 0:05:49]} dxe4 {[%emt 0:09:42]} 11. Nxe4 {[%emt 0:00:21]} Bxf3 {[%emt 0:02:02]} 12. gxf3 {[%emt 0:00:07]} f5 {[%emt 0:03:47]} 13. Ng5 {[%emt 0:22:21]} Qd7 {[%emt 0:02:26]} 14. O-O-O {[%emt 0:06:04]} Na6 {[%emt 0:05:14]} 15. Qb3+ {[%emt 0:20:13]} Nd5 {[%emt 0:00:17]} 16. Bc4 {[%emt 0:00:08]} Nac7 {[%emt 0:00:54]} 17. f4 {[%emt 0:03:41]} b5 {[%emt 0:02:19]} 18. Bf1 {[%emt 0:06:25] [#]} (18. Bxd5+ $1 $11 {and White has nothing to worry.} Nxd5 19. Nf3) 18... Ne6 $2 {[%emt 0:02:08] [#]} (18... a5 $1 $19 19. Rg1 a4) 19. Nxe6 {[%emt 0:04:17]} (19. Bxb5 $1 $11 {[%mdl 512]} Nexf4 (19... cxb5 20. Qxd5) 20. Bc4) 19... Qxe6 {[%emt 0:00:13]} 20. Re1 {[%emt 0:01:18]} Qf7 {[%emt 0:00:32]} 21. Qf3 {[%emt 0:03:09]} Rac8 {[%emt 0:12:54]} 22. Bg2 {[%emt 0:02:06]} (22. Kb1 $142) 22... a5 {[%emt 0:02:54]} ({Better is} 22... Nb4 $17 23. d5 Qxd5 24. Qxd5+ Nxd5) 23. Re2 {[%emt 0:03:03]} a4 {[%emt 0:05:52]} 24. Rhe1 {[%emt 0:01:15]} Nb4 {[%emt 0:00:42]} 25. Re6 {[%emt 0:02:10]} Nxa2+ {[%emt 0:01:25]} 26. Kb1 {[%emt 0:00:01]} Nb4 {[%emt 0:02:01]} 27. d5 {[%emt 0:02:41]} Qc7 {[%emt 0:05:58] [#]} 28. Bxb4 {[%emt 0:03:33]} (28. dxc6 $1 $16 Rfd8 29. Bxb4 Bxb4 30. R1e5) 28... Bxb4 {[%emt 0:00:12]} 29. Rxc6 {[%emt 0:00:17]} Qxc6 $2 {[%emt 0:02:39]} (29... Qd7 $11 {and Black stays safe.} 30. Re5 Bd6) 30. dxc6 {[%emt 0:00:06]} Bxe1 {[%emt 0:00:00]} 31. Qd5+ {[%emt 0:00:44]} Kh8 {[%emt 0:00:00] [#]} 32. Qxb5 {[%emt 0:01:03]} (32. Bh3 $1 $18 {is the precise move to win.}) 32... a3 {[%emt 0:03:22]} 33. b3 {[%emt 0:00:01]} Bxf2 {[%emt 0:00:05]} 34. Ka2 {[%emt 0:04:15]} Bd4 {[%emt 0:01:41]} ({Better is} 34... Be3) 35. Qc4 {[%emt 0:00:51]} Rfd8 {[%emt 0:02:19]} 36. Bd5 {[%emt 0:00:37]} ({Inferior is} 36. c7 Rd7 $17) 36... Bb2 $2 {[%emt 0:01:53]} (36... Bb6 $16 37. b4 (37. Kxa3 Ra8+ 38. Kb2 Ra5 $14) 37... Rd6) 37. b4 {[%emt 0:01:34]} Bc1 {[%emt 0:01:45]} 38. Qxc1 {[%emt 0:00:56]} Rxd5 {[%emt 0:04:34]} 39. Kxa3 $18 {[%emt 0:00:09]} Rd3+ {[%emt 0:00:04]} 40. Kb2 {[%emt 0:00:20]} h6 {[%emt 0:04:51]} 41. b5 {[%emt 0:01:25]} Rb8 {[%emt 0:03:53]} 42. Qc4 {[%emt 0:00:51]} Rd2+ {[%emt 0:01:31]} 43. Kb3 {[%emt 0:00:19]} Rd1 {[%emt 0:02:00]} 44. Kc2 {[%emt 0:00:12]} Rd6 {[%emt 0:00:50]} 45. Qc5 {[%emt 0:00:18]} Re6 {[%emt 0:00:48]} 46. c7 {[%emt 0:00:23]} Rc8 {[%emt 0:00:31]} 47. b6 {[%emt 0:00:11]} Re2+ {[%emt 0:00:29]} 48. Kd3 {[%emt 0:00:06]} Rb2 {[%emt 0:00:29]} 49. Kc3 {[%emt 0:00:26]} Rb1 {[%emt 0:00:28]} 50. Kc2 {[%emt 0:00:32]} Ra8 {[%emt 0:00:34]} 1-0

[Event "White Rook U14 Final 2019"]
[Site "Sochi"]
[Date "2019.06.06"]
[Round "5.6"]
[White "Zhukov, Maksim"]
[Black "Usov, Aleksandr E."]
[Result "0-1"]
[ECO "B11"]
[WhiteElo "1986"]
[BlackElo "1812"]
[Annotator "NA RC"]
[PlyCount "108"]
[EventDate "2019.06.02"]
[EventCountry "RUS"]
[SourceTitle "playchess.com"]
[Source "ChessBase"]
[SourceQuality "1"]
[TimeControl "5400+30"]

1. e4 {[%emt 0:00:00]} c6 {[%emt 0:00:00]} 2. Nc3 {[%emt 0:00:00]} d5 {[%emt 0:00:00]} 3. Nf3 {[%emt 0:00:00]} Bg4 {[%emt 0:00:00]} 4. h3 {[%emt 0:00:00]} Bxf3 {[%emt 0:00:00]} 5. Qxf3 {[%emt 0:00:00]} e6 {[%emt 0:00:22]} 6. d3 {[%emt 0:00:00]} Nf6 {[%emt 0:01:08]} 7. g4 {[%emt 0:01:48]} Bb4 {[%emt 0:01:21] B11: Caro-Kann: Two Knights Variation} 8. Bd2 {[%emt 0:02:14]} (8. a3 Qa5 9. Bd2 d4 10. Nb1 Na6 11. c3 dxc3 12. Nxc3 Bc5 13. Bg2 Qd8 14. Ne2 Nc7 15. g5 {0-1 (50) Lu,S (2627)-Melkumyan,H (2633) Doha 2016}) 8... d4 {[%emt 0:02:24]} 9. Nb1 {[%emt 0:02:51]} Qb6 {[%emt 0:01:04]} 10. b3 {[%emt 0:03:27]} c5 {[%emt 0:03:09]} 11. a3 {[%emt 0:01:01]} Bxd2+ {[%emt 0:00:00]} 12. Nxd2 {[%emt 0:00:03]} Nfd7 $146 {[%emt 0:00:08]} ({Predecessor:} 12... Nc6 13. Bg2 Qc7 14. O-O Nd7 15. Nc4 O-O 16. Rae1 {½-½ (16) Chernomordik,P (2305)-Logothetis,S (2248) Moscow 2003}) 13. Qg3 {[%emt 0:00:50]} e5 {[%emt 0:01:11]} 14. f4 {[%emt 0:06:58]} Nc6 {[%emt 0:01:17]} 15. h4 {[%emt 0:06:46]} exf4 {[%emt 0:00:43]} 16. Qxf4 {[%emt 0:00:05]} Nce5 {[%emt 0:00:27]} 17. g5 {[%emt 0:02:27]} Qd6 {[%emt 0:01:02]} 18. Qg3 {[%emt 0:01:50]} O-O-O {[%emt 0:03:40]} 19. Bh3 {[%emt 0:00:08]} Kb8 {[%emt 0:01:36]} 20. Bxd7 {[%emt 0:01:41]} Rxd7 {[%emt 0:00:57]} 21. Ke2 {[%emt 0:03:08]} Nc4 {[%emt 0:06:10]} 22. Qxd6+ {[%emt 0:01:31]} Nxd6 {[%emt 0:02:23]} 23. a4 {[%emt 0:02:01]} a5 {[%emt 0:04:44]} 24. Raf1 {[%emt 0:00:23]} Re7 {[%emt 0:01:20]} 25. Rf4 {[%emt 0:02:34]} h6 {[%emt 0:01:56] [#]} 26. Rg1 $1 {[%emt 0:06:46]} hxg5 {[%emt 0:01:23]} 27. Rxg5 {[%emt 0:00:18]} f5 {[%emt 0:04:12]} 28. Kd1 {[%emt 0:09:11]} Rhe8 {[%emt 0:00:30]} 29. Rgxf5 {[%emt 0:04:18]} ({White should try} 29. Kc1 $16) 29... Nxf5 {[%emt 0:00:30]} 30. Rxf5 {[%emt 0:00:03]} Re5 {[%emt 0:00:53]} 31. Rxe5 {[%emt 0:02:48]} (31. Rf7 $15) 31... Rxe5 {[%emt 0:00:00]} 32. Nf3 {[%emt 0:00:09]} Rh5 {[%emt 0:00:27]} 33. Ke1 {[%emt 0:00:21]} Kc7 {[%emt 0:01:30]} 34. Kf2 {[%emt 0:00:07]} Kc6 {[%emt 0:00:57]} 35. Kg3 {[%emt 0:00:26]} b5 {[%emt 0:01:42]} 36. axb5+ {[%emt 0:00:39]} Kxb5 {[%emt 0:00:00]} 37. Kg4 {[%emt 0:02:59]} g6 {[%emt 0:00:33]} 38. Ng5 {[%emt 0:01:54]} Kb4 {[%emt 0:00:47]} 39. Nf7 {[%emt 0:05:05]} Kc3 {[%emt 0:01:04]} 40. e5 {[%emt 0:01:23]} Rf5 {[%emt 0:00:01]} ({Don't go for} 40... c4 $2 41. e6 $16) 41. e6 {[%emt 0:00:18] [#]} Rf6 $1 {[%emt 0:00:02]} 42. Ng5 {[%emt 0:00:22] [#]} Rf8 $19 {[%emt 0:02:05]} 43. Ne4+ {[%emt 0:07:35]} Kxc2 {[%emt 0:00:02]} 44. Nxc5 {[%emt 0:00:45]} Rc8 {[%emt 0:04:21]} 45. e7 {[%emt 0:09:49]} Re8 {[%emt 0:00:00]} 46. Kg5 {[%emt 0:02:52]} Rxe7 {[%emt 0:00:20]} 47. Kxg6 {[%emt 0:00:07]} Re5 {[%emt 0:00:55]} 48. Nd7 {[%emt 0:00:28]} Rd5 {[%emt 0:00:00]} 49. Nf6 {[%emt 0:00:16]} Rd8 {[%emt 0:00:00]} 50. h5 {[%emt 0:01:22]} Kxb3 {[%emt 0:00:42]} 51. h6 {[%emt 0:01:26]} a4 {[%emt 0:00:37]} 52. h7 {[%emt 0:01:30]} Rh8 {[%emt 0:00:12]} 53. Kg7 {[%emt 0:00:31]} Rxh7+ {[%emt 0:00:02]} 54. Kxh7 {[%emt 0:00:08]} a3 {[%emt 0:00:13]} 0-1

[Event "White Rook U14 Final 2019"]
[Site "Sochi"]
[Date "2019.06.06"]
[Round "5.7"]
[White "Saikin, Ilia"]
[Black "Ermolaev, Ivan"]
[Result "0-1"]
[ECO "D02"]
[WhiteElo "1641"]
[BlackElo "1776"]
[Annotator "NA RC"]
[PlyCount "70"]
[EventDate "2019.06.02"]
[EventCountry "RUS"]
[SourceTitle "playchess.com"]
[Source "ChessBase"]
[SourceQuality "1"]
[TimeControl "5400+30"]

1. d4 {[%emt 0:00:00]} Nf6 {[%emt 0:00:08]} 2. Nf3 {[%emt 0:00:24]} g6 {[%emt 0:00:00]} 3. Nbd2 {[%emt 0:00:00]} d5 {[%emt 0:00:17]} 4. b4 {[%emt 0:00:08]} Bg7 {[%emt 0:00:56]} 5. e3 {[%emt 0:01:22]} O-O {[%emt 0:00:08]} 6. c4 {[%emt 0:00:16]} b6 {[%emt 0:02:07]} 7. b5 {[%emt 0:15:05]} c5 {[%emt 0:06:33]} 8. Bb2 {[%emt 0:04:33]} Bb7 {[%emt 0:01:11]} 9. Be2 {[%emt 0:04:17]} Nbd7 {[%emt 0:04:32]} 10. O-O {[%emt 0:04:00]} Qc7 {[%emt 0:00:16]} 11. Rc1 {[%emt 0:10:12]} Rac8 {[%emt 0:03:14]} 12. a4 {[%emt 0:07:23]} Rfd8 {[%emt 0:00:16]} 13. Qb3 {[%emt 0:01:53]} e6 {[%emt 0:13:54]} 14. Qa2 {[%emt 0:03:22]} dxc4 {[%emt 0:13:11]} 15. Bxc4 {[%emt 0:02:15]} Nd5 {[%emt 0:02:13]} 16. Qa1 {[%emt 0:01:33]} Qd6 {[%emt 0:03:00]} 17. Nb3 {[%emt 0:27:17]} Qe7 {[%emt 0:02:43]} 18. Rfe1 {[%emt 0:00:53]} cxd4 {[%emt 0:00:12]} 19. Nfxd4 {[%emt 0:04:08]} Ne5 {[%emt 0:07:04]} 20. Nd2 {[%emt 0:04:06]} Qh4 {[%emt 0:11:32]} 21. g3 {[%emt 0:00:53]} Qh6 {[%emt 0:03:41]} 22. Be2 {[%emt 0:02:35]} Nb4 {[%emt 0:00:40]} 23. Rxc8 {[%emt 0:02:22]} Rxc8 {[%emt 0:00:08]} 24. Rc1 {[%emt 0:00:08]} Rxc1+ {[%emt 0:01:58]} 25. Qxc1 {[%emt 0:00:13]} Nbd3 {[%emt 0:03:48]} 26. Bxd3 {[%emt 0:00:08]} Nxd3 {[%emt 0:00:08]} 27. Qc7 {[%emt 0:02:22]} Nxb2 {[%emt 0:00:04]} 28. Qb8+ {[%emt 0:00:11]} Bf8 {[%emt 0:00:18]} 29. Qxb7 {[%emt 0:00:00]} Qh5 {[%emt 0:00:25]} 30. f3 {[%emt 0:02:24]} Qc5 {[%emt 0:00:22]} 31. Qxa7 {[%emt 0:00:34]} e5 {[%emt 0:00:19]} 32. N2b3 {[%emt 0:00:33]} Qc3 {[%emt 0:00:29]} 33. Qxb6 {[%emt 0:00:19]} exd4 {[%emt 0:01:00]} 34. Nxd4 {[%emt 0:00:10]} Nxa4 {[%emt 0:00:43]} 35. Nc6 {[%emt 0:00:51]} Nxb6 {[%emt 0:00:31]} 0-1

[Event "White Rook U14 Final 2019"]
[Site "Sochi"]
[Date "2019.06.06"]
[Round "5.8"]
[White "Kuzmina, Varvara"]
[Black "Krupnova, Anna"]
[Result "0-1"]
[ECO "E11"]
[WhiteElo "1190"]
[BlackElo "1714"]
[Annotator "NA RC"]
[PlyCount "68"]
[EventDate "2019.06.02"]
[EventCountry "RUS"]
[SourceTitle "playchess.com"]
[Source "ChessBase"]
[SourceQuality "1"]
[TimeControl "5400+30"]

1. d4 {[%emt 0:00:00]} Nf6 {[%emt 0:00:00]} 2. Nf3 {[%emt 0:00:00]} e6 {[%emt 0:00:00]} 3. c4 {[%emt 0:00:00]} Bb4+ {[%emt 0:00:14]} 4. Bd2 {[%emt 0:00:07]} Qe7 {[%emt 0:00:55]} 5. a3 {[%emt 0:00:43]} Bxd2+ {[%emt 0:00:29]} 6. Nbxd2 {[%emt 0:00:53]} O-O {[%emt 0:01:58]} 7. g3 {[%emt 0:00:32]} d6 {[%emt 0:02:36]} 8. Bg2 {[%emt 0:04:27]} e5 {[%emt 0:03:52]} 9. e3 {[%emt 0:02:41]} Re8 {[%emt 0:14:22]} 10. O-O {[%emt 0:00:26]} e4 {[%emt 0:05:11]} 11. Ng5 {[%emt 0:01:39]} Bf5 {[%emt 0:02:15]} 12. Nh3 {[%emt 0:02:40]} c5 {[%emt 0:03:55]} 13. dxc5 {[%emt 0:07:03]} dxc5 {[%emt 0:00:15]} 14. Qc2 {[%emt 0:00:24]} Nc6 {[%emt 0:01:42]} 15. Nf4 {[%emt 0:03:13]} Rad8 {[%emt 0:01:19]} 16. Rfd1 {[%emt 0:00:42]} g5 {[%emt 0:14:44]} 17. Ne2 {[%emt 0:16:27]} Ne5 {[%emt 0:07:17]} 18. Nb3 {[%emt 0:21:21]} Bg4 {[%emt 0:12:17]} 19. Rxd8 {[%emt 0:10:47]} Rxd8 {[%emt 0:00:07]} 20. Nc3 {[%emt 0:01:56]} Nf3+ {[%emt 0:11:03]} 21. Kh1 {[%emt 0:03:56]} Qe5 {[%emt 0:06:39]} 22. Rd1 {[%emt 0:04:21]} Rxd1+ {[%emt 0:03:35]} 23. Qxd1 {[%emt 0:03:23]} Qf5 {[%emt 0:04:35]} 24. Qf1 {[%emt 0:05:38]} Qg6 {[%emt 0:01:31]} 25. Nb1 {[%emt 0:02:06]} Qh6 {[%emt 0:00:37]} 26. h3 {[%emt 0:00:00]} Bxh3 {[%emt 0:00:31]} 27. Bxh3 {[%emt 0:00:50]} g4 {[%emt 0:00:21]} 28. Nxc5 {[%emt 0:00:01]} Ng5 {[%emt 0:01:09]} 29. Qg2 {[%emt 0:01:01]} Nxh3 {[%emt 0:00:00]} 30. Qh2 {[%emt 0:00:23]} Nxf2+ {[%emt 0:00:22]} 31. Kg2 {[%emt 0:00:01]} Qxe3 {[%emt 0:00:35]} 32. Kf1 {[%emt 0:03:10]} Nh3 {[%emt 0:01:01]} 33. Nxb7 {[%emt 0:01:19]} Qc1+ {[%emt 0:00:26]} 34. Kg2 {[%emt 0:00:33]} Qxb2+ {[%emt 0:00:00]} 0-1

[Event "White Rook U14 Final 2019"]
[Site "Sochi"]
[Date "2019.06.06"]
[Round "5.9"]
[White "Suvanbekov, Jahangir"]
[Black "Putrenko, Kirill"]
[Result "0-1"]
[ECO "D02"]
[WhiteElo "1569"]
[BlackElo "2010"]
[Annotator "NA RC"]
[PlyCount "108"]
[EventDate "2019.06.02"]
[EventCountry "RUS"]
[SourceTitle "playchess.com"]
[Source "ChessBase"]
[SourceQuality "1"]
[TimeControl "5400+30"]

{[%evp 33,108,-110,-83,-100,-88,-95,-91,-78,-71,-84,-32,-82,-11,-66,-27,-102,32767,32767,32767,-17,-17,-17,0,-20,0,-26,-30,-45,-25,-33,-32,-24,-37,-47,-26,-25,-42,-37,-35,-27,-31,32767,32767,32767,32767,32767,32767,32767,32767,32767,32767,-252,-25,32767,-454,32767,32767,32767,-501,32767,32767,32767,32767,-566,-641,32767,32767,-573,32767,-950,-1131,-1868,-1747,-852,-1116,-878,-12453]} 1. d4 {[%emt 0:00:00]} Nf6 {[%emt 0:00:00]} 2. Bf4 {[%emt 0:00:00]} e6 {[%emt 0:00:00]} 3. e3 {[%emt 0:00:00]} c5 {[%emt 0:00:00]} 4. c3 {[%emt 0:00:48]} d5 {[%emt 0:04:17]} 5. Bd3 {[%emt 0:01:23]} Nc6 {[%emt 0:00:00]} 6. Nf3 {[%emt 0:01:08]} Bd6 {[%emt 0:00:02]} 7. Bg3 {[%emt 0:00:32]} O-O {[%emt 0:00:15]} 8. Nbd2 {[%emt 0:00:54]} b6 {[%emt 0:00:40]} 9. O-O {[%emt 0:01:14] D02: 1 d4 d5 2 Nf3 sidelines, including 2...Nf6 3 g3 and 2...Nf6 3 Bf4} (9. Qe2 Bb7 10. Rd1 Re8 11. e4 Be7 12. e5 Nh5 13. h4 cxd4 14. Nxd4 Nxg3 15. fxg3 Bc5 16. N2f3 f5 {½-½ (45) Esipenko,A (2593)-Karjakin,S (2753) St Petersburg 2018}) 9... Bb7 {[%emt 0:01:00]} 10. e4 {[%emt 0:07:11]} Be7 {[%emt 0:03:17]} 11. e5 $146 {[%emt 0:01:51]} ({Predecessor:} 11. dxc5 bxc5 12. Re1 c4 13. Bc2 Nh5 14. exd5 exd5 15. Nf1 Nxg3 16. Nxg3 Bc8 {½-½ (42) Veleshnja,Z (2155)-Varacalli,F (2334) Porto Carras 2018}) 11... Nh5 {[%emt 0:00:08]} 12. a3 {[%emt 0:01:01]} g6 {[%emt 0:01:11]} 13. Qe2 {[%emt 0:09:28]} Kg7 {[%emt 0:02:30]} 14. Rfe1 {[%emt 0:02:54]} Nxg3 {[%emt 0:01:15]} 15. hxg3 {[%emt 0:00:41]} h5 {[%emt 0:00:30]} 16. Kh2 {[%emt 0:02:39]} g5 {[%emt 0:03:15]} 17. Bb5 {[%emt 0:08:15]} (17. Qe3 $15) 17... g4 {[%emt 0:02:30]} 18. Ng1 {[%emt 0:01:07]} Rh8 {[%emt 0:02:32]} 19. Qd1 {[%emt 0:01:56]} cxd4 {[%emt 0:02:53]} 20. Bxc6 {[%emt 0:00:25]} Bxc6 {[%emt 0:00:17]} 21. cxd4 {[%emt 0:00:05]} Rh6 {[%emt 0:07:04]} (21... Qg8 $17 22. Rc1 Bb5) 22. Ne2 {[%emt 0:01:41]} Bb5 {[%emt 0:03:50]} 23. Rh1 {[%emt 0:01:27]} (23. Kg1 $11) 23... Bd3 {[%emt 0:03:56]} (23... f5 $17 24. Kg1 Rc8) 24. Kg1 {[%emt 0:02:45]} (24. Nf1 $15 Bxe2 25. Qxe2) 24... Bf5 {[%emt 0:04:25]} 25. Nf1 {[%emt 0:00:56]} Bg5 {[%emt 0:02:48]} 26. Nf4 {[%emt 0:13:42]} h4 {[%emt 0:01:31]} 27. Ne3 {[%emt 0:04:07]} hxg3 {[%emt 0:01:57]} 28. Nh5+ {[%emt 0:04:20]} Kf8 {[%emt 0:08:00]} 29. Nxg3 {[%emt 0:01:13]} Rxh1+ {[%emt 0:00:25]} 30. Nxh1 {[%emt 0:00:00]} Bxe3 {[%emt 0:01:27]} 31. fxe3 {[%emt 0:00:23]} Qh4 {[%emt 0:01:21]} 32. Qe1 {[%emt 0:00:59]} Qxe1+ {[%emt 0:01:17]} 33. Rxe1 {[%emt 0:00:34]} Rc8 {[%emt 0:00:09]} 34. Kf2 {[%emt 0:00:00]} Bd3 {[%emt 0:01:22]} 35. Kg3 $1 {[%emt 0:04:26]} Rc2 {[%emt 0:01:01]} 36. Nf2 {[%emt 0:00:47]} Bf5 {[%emt 0:00:00]} 37. Nd1 {[%emt 0:03:14]} Rd2 {[%emt 0:02:31]} 38. a4 {[%emt 0:04:01]} a5 {[%emt 0:04:56]} 39. Rg1 {[%emt 0:01:15]} Kg7 {[%emt 0:02:15]} 40. Kf4 {[%emt 0:01:13]} Kg6 {[%emt 0:01:00]} 41. Kg3 {[%emt 0:00:13]} Kg5 {[%emt 0:01:12]} 42. Rf1 {[%emt 0:01:27]} Re2 {[%emt 0:01:42]} (42... Bg6 $17 43. Nf2 Bf5) 43. Rh1 {[%emt 0:03:10] [#]} Be4 $1 {[%emt 0:01:08]} 44. Rg1 {[%emt 0:02:05]} Bc2 {[%emt 0:06:25]} 45. Rf1 {[%emt 0:02:31]} Bxd1 {[%emt 0:00:00] Discovered Attack} 46. Rxd1 {[%emt 0:00:33]} Rxe3+ {[%emt 0:00:38]} 47. Kf2 {[%emt 0:00:00]} Rb3 {[%emt 0:00:06]} 48. Rd2 {[%emt 0:01:47]} Kf4 {[%emt 0:00:40]} 49. Rc2 {[%emt 0:02:08]} g3+ {[%emt 0:00:35]} 50. Ke2 {[%emt 0:01:01]} Ke4 {[%emt 0:00:42]} 51. Rc7 {[%emt 0:01:30]} Rxb2+ {[%emt 0:00:00]} 52. Ke1 {[%emt 0:01:13]} Kxd4 {[%emt 0:00:19]} 53. Rxf7 {[%emt 0:00:38]} Kxe5 {[%emt 0:00:44]} 54. Rf3 {[%emt 0:00:07]} Rxg2 $19 {[%emt 0:00:00]} 0-1

[Event "White Rook U14 Final 2019"]
[Site "Sochi"]
[Date "2019.06.06"]
[Round "5.10"]
[White "Ismagilov, Igor"]
[Black "Solomko, Artur"]
[Result "1/2-1/2"]
[ECO "D02"]
[WhiteElo "1803"]
[BlackElo "1498"]
[Annotator "NA RC"]
[PlyCount "114"]
[EventDate "2019.06.02"]
[EventCountry "RUS"]
[SourceTitle "playchess.com"]
[Source "ChessBase"]
[SourceQuality "1"]
[TimeControl "5400+30"]

1. d4 {[%emt 0:00:00]} d5 {[%emt 0:00:00]} 2. Bf4 {[%emt 0:00:00]} c5 {[%emt 0:00:00]} 3. c3 {[%emt 0:00:00]} Nc6 {[%emt 0:00:00]} 4. e3 {[%emt 0:00:00]} e6 {[%emt 0:00:00]} 5. Nd2 {[%emt 0:00:20]} Nf6 {[%emt 0:00:42]} 6. Bd3 {[%emt 0:00:05]} Be7 {[%emt 0:01:36]} 7. h3 {[%emt 0:00:07]} O-O {[%emt 0:00:21]} 8. Ngf3 {[%emt 0:00:47]} b6 {[%emt 0:04:29]} 9. Ne5 {[%emt 0:02:50] D02: 1 d4 d5 2 Nf3 sidelines, including 2...Nf6 3 g3 and 2...Nf6 3 Bf4} Bb7 {[%emt 0:06:21]} 10. O-O {[%emt 0:00:54]} Bd6 {[%emt 0:02:57]} (10... Nd7 11. Nxc6 Bxc6 12. a4 a5 13. Qe2 Nf6 14. Nf3 Bb7 15. Bb5 Qc8 16. Rac1 {0-1 (51) Vachier Lagrave,M (2723)-Caruana,F (2697) Biel 2010}) 11. Ndf3 {[%emt 0:04:58]} Qc7 {[%emt 0:03:40]} 12. a4 {[%emt 0:06:23]} h6 {[%emt 0:03:03]} 13. Qe2 {[%emt 0:14:11]} Nd7 {[%emt 0:07:44]} 14. Nxc6 $146 {[%emt 0:05:04]} ({Predecessor:} 14. Nxd7 Qxd7 15. Ne5 Nxe5 16. Bxe5 Bxe5 17. dxe5 f5 18. exf6 Rxf6 {1-0 (46) Mueller,T-Kruse,W Baunatal 1998}) 14... Bxc6 {[%emt 0:00:27]} 15. Bxd6 {[%emt 0:01:20]} Qxd6 {[%emt 0:00:05]} 16. e4 {[%emt 0:02:15]} dxe4 {[%emt 0:03:03]} 17. Bxe4 {[%emt 0:00:08]} Bxe4 {[%emt 0:02:54]} 18. Qxe4 {[%emt 0:00:10]} Rfe8 {[%emt 0:06:27]} 19. Rfd1 {[%emt 0:04:25]} Qc7 {[%emt 0:03:49]} 20. Rd2 {[%emt 0:19:04]} Rad8 {[%emt 0:04:13]} 21. Rad1 {[%emt 0:01:37]} Nf6 {[%emt 0:17:55]} 22. Qe5 {[%emt 0:01:42]} Qc6 {[%emt 0:00:00]} 23. dxc5 {[%emt 0:00:30]} Rxd2 {[%emt 0:00:00]} 24. Rxd2 {[%emt 0:01:04]} bxc5 {[%emt 0:00:00]} 25. b3 {[%emt 0:00:07]} Rc8 {[%emt 0:04:49]} 26. c4 {[%emt 0:06:34]} Qb6 {[%emt 0:04:46]} 27. Rd3 {[%emt 0:05:22]} Qb4 {[%emt 0:04:44]} 28. Qe2 {[%emt 0:01:36]} Qb6 {[%emt 0:05:08]} 29. Ne5 {[%emt 0:02:24]} Rd8 {[%emt 0:02:38]} 30. Kf1 {[%emt 0:04:38]} Rd6 {[%emt 0:01:45]} 31. Qd1 {[%emt 0:03:43]} Rxd3 {[%emt 0:01:49]} 32. Qxd3 {[%emt 0:00:33]} Qc7 {[%emt 0:00:45]} 33. f4 {[%emt 0:00:09]} Kf8 {[%emt 0:00:34]} 34. Kf2 {[%emt 0:05:40]} Ke7 {[%emt 0:02:24]} 35. a5 {[%emt 0:02:12]} Nd7 {[%emt 0:01:04]} 36. Qc3 {[%emt 0:02:34]} Nb8 {[%emt 0:03:01]} 37. b4 $11 {[%emt 0:02:01]} (37. Qg3 $5 {[%cal Rg3g7]} Nd7 38. Qxg7 Nxe5 39. Qxe5 (39. fxe5 Qxa5 40. Qf6+ Ke8 $11) 39... Qxa5 40. Kf3 $11) 37... Nc6 {[%emt 0:02:57]} 38. bxc5 {[%emt 0:00:37]} Nxe5 {[%emt 0:00:54]} 39. Qxe5 {[%emt 0:02:14]} Qxa5 {[%emt 0:00:17]} 40. Qd6+ {[%emt 0:00:13]} Kf6 {[%emt 0:00:24]} 41. Qe5+ {[%emt 0:00:14]} Ke7 {[%emt 0:00:32]} 42. Qd6+ {[%emt 0:00:26]} Kf6 {[%emt 0:00:05]} 43. Qd4+ {[%emt 0:00:16]} Ke7 {[%emt 0:00:04]} 44. Kg3 {[%emt 0:00:04]} Qe1+ {[%emt 0:00:16]} 45. Kh2 {[%emt 0:01:29]} Qb4 {[%emt 0:01:14]} 46. c6 {[%emt 0:00:07]} Qd6 {[%emt 0:00:15]} 47. Qxa7+ {[%emt 0:00:50]} Kf6 {[%emt 0:01:12]} 48. Qa1+ {[%emt 0:00:28]} Ke7 {[%emt 0:00:06]} 49. Qa7+ {[%emt 0:00:41]} Kf6 {[%emt 0:00:33]} 50. Qa1+ {[%emt 0:00:29]} Ke7 {[%emt 0:00:04]} 51. Qa7+ {[%emt 0:00:01]} Kf6 {[%emt 0:00:04]} 52. Qe3 {[%emt 0:00:57]} Qxc6 {[%emt 0:00:06]} 53. Qe5+ {[%emt 0:00:15]} Kg6 {[%emt 0:00:09]} 54. c5 {[%emt 0:00:19]} f6 {[%emt 0:00:31]} 55. Qd4 {[%emt 0:00:09]} Kf7 {[%emt 0:01:04]} 56. Qc4 {[%emt 0:00:31]} Ke7 {[%emt 0:00:32]} 57. Qb4 {[%emt 0:00:58]} Kd7 {[%emt 0:00:56]} 1/2-1/2

[Event "White Rook U14 Final 2019"]
[Site "Sochi"]
[Date "2019.06.06"]
[Round "5.11"]
[White "Alisherov, Alikhan"]
[Black "Khodko, Yurii N."]
[Result "0-1"]
[ECO "E63"]
[WhiteElo "1567"]
[BlackElo "1727"]
[Annotator "NA RC"]
[PlyCount "47"]
[EventDate "2019.06.02"]
[EventCountry "RUS"]
[SourceTitle "playchess.com"]
[Source "ChessBase"]
[SourceQuality "1"]
[TimeControl "5400+30"]

1. d4 {[%emt 0:00:00]} Nf6 {[%emt 0:00:00]} 2. Nf3 {[%emt 0:00:00]} g6 {[%emt 0:00:00]} 3. g3 {[%emt 0:00:23]} Bg7 {[%emt 0:00:57]} 4. Bg2 {[%emt 0:00:31]} O-O {[%emt 0:00:08]} 5. O-O {[%emt 0:01:56]} d6 {[%emt 0:00:07]} 6. c4 {[%emt 0:09:46]} Nc6 {[%emt 0:00:08]} 7. Nc3 {[%emt 0:01:09]} a6 {[%emt 0:00:06]} 8. e3 {[%emt 0:14:32]} Bd7 {[%emt 0:04:03]} 9. a3 {[%emt 0:05:43]} a5 {[%emt 0:06:16]} 10. b3 {[%emt 0:05:26]} Qc8 {[%emt 0:01:42]} 11. Bb2 {[%emt 0:08:47]} Bh3 {[%emt 0:01:17]} 12. Qc2 {[%emt 0:01:32]} Bxg2 {[%emt 0:00:09]} 13. Kxg2 {[%emt 0:00:08]} Nd7 {[%emt 0:01:33]} 14. Rad1 {[%emt 0:03:05]} e5 {[%emt 0:04:18]} 15. Ne2 {[%emt 0:10:27]} f5 {[%emt 0:01:40]} 16. d5 {[%emt 0:03:26]} Nd8 {[%emt 0:01:06]} 17. b4 {[%emt 0:04:30]} b6 {[%emt 0:01:59]} 18. Bc3 {[%emt 0:06:30]} axb4 {[%emt 0:00:33]} 19. axb4 {[%emt 0:01:33]} e4 {[%emt 0:01:03]} 20. Bxg7 {[%emt 0:05:04]} exf3+ {[%emt 0:00:08]} 21. Kxf3 {[%emt 0:00:00]} Kxg7 {[%emt 0:00:08]} 22. Kg2 {[%emt 0:00:38]} Kg8 {[%emt 0:00:51]} 23. Nd4 {[%emt 0:00:40]} Re8 {[%emt 0:01:48]} 24. g4 {[%emt 0:04:26]} 0-1